[Event "Polofinale MCR junioru 2023"]
[Site "Czech Republic"]
[Date "2023.11.11"]
[Round "1.12"]
[White "Stejskal, Michal"]
[Black "Hlavina, Matous"]
[Result "0-1"]
[TimeControl "90 min per 40 moves + 15 min + 30 sec / move from move 1"]
[WhiteFideId "398195"]
[BlackFideId "386650"]
[WhiteElo "1872"]
[BlackElo "2134"]

1. e4 {[%clk 01:30:56]} {[%emt 00:00:03]} d5 {[%clk 01:30:48]} {[%emt
00:00:13]} 2. exd5 {[%clk 01:31:12]} {[%emt 00:00:14]} Qxd5 {[%clk 01:31:13]}
{[%emt 00:00:05]} 3. Nc3 {[%clk 01:31:21]} {[%emt 00:00:21]} Qd6 {[%clk
01:31:24]} {[%emt 00:00:19]} 4. Nf3 {[%clk 01:31:00]} {[%emt 00:00:51]} Nf6
{[%clk 01:31:40]} {[%emt 00:00:14]} 5. d4 {[%clk 01:30:33]} {[%emt 00:00:56]}
a6 {[%clk 01:31:46]} {[%emt 00:00:25]} 6. h3 {[%clk 01:27:59]} {[%emt
00:03:04]} Bf5 {[%clk 01:31:34]} {[%emt 00:00:41]} 7. Bd3 {[%clk 01:26:59]}
{[%emt 00:01:29]} Bxd3 {[%clk 01:31:26]} {[%emt 00:00:39]} 8. Qxd3 {[%clk
01:27:22]} {[%emt 00:00:07]} Nc6 {[%clk 01:29:38]} {[%emt 00:02:19]} 9. a3
{[%clk 01:24:43]} {[%emt 00:03:08]} e6 {[%clk 01:22:14]} {[%emt 00:07:54]} 10.
Be3 {[%clk 01:21:36]} {[%emt 00:03:37]} Be7 {[%clk 01:21:34]} {[%emt 00:01:11]}
11. O-O {[%clk 01:21:43]} {[%emt 00:00:22]} O-O {[%clk 01:21:28]} {[%emt
00:00:37]} 12. Rad1 {[%clk 01:17:39]} {[%emt 00:04:33]} Rfd8 {[%clk 01:20:37]}
{[%emt 00:01:22]} 13. Rfe1 {[%clk 01:13:49]} {[%emt 00:04:19]} h6 {[%clk
01:18:01]} {[%emt 00:03:05]} 14. Qe2 {[%clk 01:05:39]} {[%emt 00:08:41]} b5
{[%clk 01:14:41]} {[%emt 00:03:51]} 15. b4 {[%clk 01:01:31]} {[%emt 00:04:38]}
Bf8 {[%clk 01:10:25]} {[%emt 00:04:46]} 16. g3 {[%clk 00:57:55]} {[%emt
00:04:05]} Ne7 {[%clk 01:05:21]} {[%emt 00:05:35]} 17. Ne5 {[%clk 00:50:20]}
{[%emt 00:08:03]} Ned5 {[%clk 01:04:34]} {[%emt 00:01:18]} 18. Nxd5 {[%clk
00:48:54]} {[%emt 00:01:55]} Qxd5 {[%clk 00:59:31]} {[%emt 00:05:35]} 19. c4
{[%clk 00:45:55]} {[%emt 00:03:29]} Qb7 {[%clk 00:57:03]} {[%emt 00:02:57]} 20.
Bc1 {[%clk 00:42:23]} {[%emt 00:04:02]} Bd6 {[%clk 00:50:06]} {[%emt 00:07:27]}
21. Bb2 {[%clk 00:37:45]} {[%emt 00:05:09]} Bxe5 {[%clk 00:35:32]} {[%emt
00:15:03]} 22. dxe5 {[%clk 00:37:55]} {[%emt 00:00:20]} Nh7 {[%clk 00:35:38]}
{[%emt 00:00:24]} 23. h4 {[%clk 00:36:49]} {[%emt 00:01:36]} Nf8 {[%clk
00:33:48]} {[%emt 00:02:20]} 24. Qg4 {[%clk 00:29:42]} {[%emt 00:07:36]} Ng6
{[%clk 00:29:56]} {[%emt 00:04:23]} 25. Kh2 {[%clk 00:25:15]} {[%emt 00:04:57]}
Ne7 {[%clk 00:27:55]} {[%emt 00:02:32]} 26. Qe2 {[%clk 00:16:40]} {[%emt
00:09:03]} bxc4 {[%clk 00:19:03]} {[%emt 00:09:24]} 27. Qxc4 {[%clk 00:16:21]}
{[%emt 00:00:48]} Qf3 {[%clk 00:18:43]} {[%emt 00:00:49]} 28. Qc2 {[%clk
00:13:56]} {[%emt 00:02:56]} Rd5 {[%clk 00:16:50]} {[%emt 00:02:23]} 29. Rxd5
{[%clk 00:10:09]} {[%emt 00:04:18]} Nxd5 {[%clk 00:17:09]} {[%emt 00:00:11]} 30.
Qe2 {[%clk 00:09:43]} {[%emt 00:00:56]} Qb3 {[%clk 00:16:14]} {[%emt 00:01:22]}
31. Rd1 {[%clk 00:08:47]} {[%emt 00:01:29]} Rb8 {[%clk 00:16:07]} {[%emt
00:00:35]} 32. Rd3 {[%clk 00:07:37]} {[%emt 00:01:40]} Qc4 {[%clk 00:14:55]}
{[%emt 00:01:43]} 33. Qd2 {[%clk 00:07:52]} {[%emt 00:00:16]} c5 {[%clk
00:11:22]} {[%emt 00:04:03]} 34. Bc3 {[%clk 00:05:05]} {[%emt 00:03:16]} cxb4
{[%clk 00:10:20]} {[%emt 00:01:32]} 35. Bxb4 {[%clk 00:05:31]} {[%emt
00:00:05]} Nxb4 {[%clk 00:09:05]} {[%emt 00:01:45]} 36. axb4 {[%clk 00:02:54]}
{[%emt 00:03:07]} Rxb4 {[%clk 00:06:22]} {[%emt 00:03:13]} 37. Rd8+ {[%clk
00:02:13]} {[%emt 00:01:11]} Kh7 {[%clk 00:06:46]} {[%emt 00:00:05]} 38. Qd7
{[%clk 00:02:23]} {[%emt 00:00:21]} Qd5 {[%clk 00:02:43]} {[%emt 00:04:33]} 39.
Qe7 {[%clk 00:01:40]} {[%emt 00:01:13]} Rb7 {[%clk 00:01:48]} {[%emt 00:01:25]}
40. Rxd5 {[%clk 00:01:38]} {[%emt 00:00:31]} Rxe7 {[%clk 00:02:15]} {[%emt
00:00:04]} 41. Ra5 {[%clk 00:02:02]} {[%emt 00:00:06]} Ra7 {[%clk 00:02:30]}
{[%emt 00:00:14]} 42. h5 {[%clk 00:01:47]} {[%emt 00:00:45]} Kg8 {[%clk
00:01:10]} {[%emt 00:01:50]} 43. g4 {[%clk 00:02:10]} {[%emt 00:00:07]} Kf8
{[%clk 00:01:31]} {[%emt 00:00:10]} 44. Kg3 {[%clk 00:02:33]} {[%emt 00:00:06]}
Ke7 {[%clk 00:01:55]} {[%emt 00:00:06]} 45. Kf4 {[%clk 00:02:58]} {[%emt
00:00:06]} Kd7 {[%clk 00:02:12]} {[%emt 00:00:12]} 46. Ke4 {[%clk 00:03:23]}
{[%emt 00:00:05]} Kc6 {[%clk 00:02:22]} {[%emt 00:00:19]} 47. f4 {[%clk
00:03:45]} {[%emt 00:00:08]} Kb6 {[%clk 00:02:06]} {[%emt 00:00:48]} 48. Ra1
{[%clk 00:04:10]} {[%emt 00:00:05]} a5 {[%clk 00:02:07]} {[%emt 00:00:29]} 49.
f5 {[%clk 00:04:05]} {[%emt 00:00:34]} a4 {[%clk 00:00:41]} {[%emt 00:01:56]}
50. f6 {[%clk 00:03:36]} {[%emt 00:00:59]} gxf6 {[%clk 00:15:52]} {[%emt
00:00:50]} 51. exf6 {[%clk 00:20:00]} {[%emt 00:00:06]} a3 {[%clk 00:14:38]}
{[%emt 00:01:44]} 52. g5 {[%clk 00:19:37]} {[%emt 00:00:53]} hxg5 {[%clk
00:13:17]} {[%emt 00:01:51]} 53. h6 {[%clk 00:20:03]} {[%emt 00:00:04]} Ra8
{[%clk 00:11:00]} {[%emt 00:02:48]} 54. h7 {[%clk 00:19:38]} {[%emt 00:00:54]}
Rh8 {[%clk 00:11:05]} {[%emt 00:00:25]} 55. Rxa3 {[%clk 00:20:04]} {[%emt
00:00:04]} Rxh7 {[%clk 00:11:28]} {[%emt 00:00:07]} 56. Ke5 {[%clk 00:20:30]}
{[%emt 00:00:03]} Kc6 {[%clk 00:09:47]} {[%emt 00:02:11]} 57. Ra6+ {[%clk
00:19:03]} {[%emt 00:01:58]} Kc5 {[%clk 00:08:08]} {[%emt 00:02:09]} 58. Ra5+
{[%clk 00:19:06]} {[%emt 00:00:27]} Kb6 {[%clk 00:07:14]} {[%emt 00:01:24]} 59.
Ra3 {[%clk 00:19:29]} {[%emt 00:00:07]} Rh6 {[%clk 00:06:03]} {[%emt 00:01:42]}
60. Rb3+ {[%clk 00:19:36]} {[%emt 00:00:22]} Kc6 {[%clk 00:06:25]} {[%emt
00:00:08]} 61. Rc3+ {[%clk 00:19:35]} {[%emt 00:00:31]} Kb7 {[%clk 00:05:48]}
{[%emt 00:01:07]} 62. Rb3+ {[%clk 00:19:57]} {[%emt 00:00:08]} Kc6 {[%clk
00:04:18]} {[%emt 00:02:00]} 63. Rc3+ {[%clk 00:20:22]} {[%emt 00:00:05]} Kb5
{[%clk 00:04:40]} {[%emt 00:00:08]} 64. Rb3+ {[%clk 00:20:19]} {[%emt
00:00:32]} Kc4 {[%clk 00:04:56]} {[%emt 00:00:15]} 65. Ra3 {[%clk 00:20:25]}
{[%emt 00:00:24]} g4 {[%clk 00:04:45]} {[%emt 00:00:41]} 66. Rg3 {[%clk
00:19:37]} {[%emt 00:01:18]} Rg6 {[%clk 00:04:55]} {[%emt 00:00:20]} 67. Kd6
{[%clk 00:19:49]} {[%emt 00:00:17]} Rxf6 {[%clk 00:05:15]} {[%emt 00:00:11]} 68.
Rxg4+ {[%clk 00:20:15]} {[%emt 00:00:03]} Kd3 {[%clk 00:05:34]} {[%emt
00:00:11]} 69. Ra4 {[%clk 00:20:04]} {[%emt 00:00:42]} Rf5 {[%clk 00:05:40]}
{[%emt 00:00:23]} 70. Ra3+ {[%clk 00:20:28]} {[%emt 00:00:07]} Ke4 {[%clk
00:06:05]} {[%emt 00:00:05]} 71. Ra4+ {[%clk 00:20:53]} {[%emt 00:00:05]} Kf3
{[%clk 00:06:32]} 0-1

[Event "Polofinale MCR junioru 2023"]
[Site "Czech Republic"]
[Date "2023.11.11"]
[Round "1.13"]
[White "Hurtik, Matej"]
[Black "Steinbauer, Sebastian"]
[Result "1-0"]
[TimeControl "90 min per 40 moves + 15 min + 30 sec / move from move 1"]
[WhiteFideId "397997"]
[BlackFideId "399272"]
[WhiteElo "2131"]
[BlackElo "1869"]

1. e4 {[%clk 01:30:40]} {[%emt 00:00:07]} e5 {[%clk 01:30:49]} {[%emt
00:00:23]} 2. Nf3 {[%clk 01:30:59]} {[%emt 00:00:11]} Nf6 {[%clk 01:31:11]}
{[%emt 00:00:09]} 3. Nxe5 {[%clk 01:30:03]} {[%emt 00:01:25]} d6 {[%clk
01:31:36]} {[%emt 00:00:06]} 4. Nf3 {[%clk 01:30:13]} {[%emt 00:00:19]} Nxe4
{[%clk 01:32:01]} {[%emt 00:00:06]} 5. d4 {[%clk 01:30:35]} {[%emt 00:00:07]}
d5 {[%clk 01:32:26]} {[%emt 00:00:06]} 6. Bd3 {[%clk 01:31:00]} {[%emt
00:00:04]} Bd6 {[%clk 01:32:37]} {[%emt 00:00:19]} 7. O-O {[%clk 01:30:58]}
{[%emt 00:00:32]} O-O {[%clk 01:32:49]} {[%emt 00:00:19]} 8. c4 {[%clk
01:31:15]} {[%emt 00:00:12]} c6 {[%clk 01:32:47]} {[%emt 00:00:33]} 9. Qc2
{[%clk 01:31:38]} {[%emt 00:00:06]} Re8 {[%clk 01:27:43]} {[%emt 00:05:34]} 10.
Nc3 {[%clk 01:29:32]} {[%emt 00:02:35]} f5 {[%clk 01:27:41]} {[%emt 00:00:33]}
11. cxd5 {[%clk 01:29:11]} {[%emt 00:00:52]} Nxc3 {[%clk 01:27:07]} {[%emt
00:01:04]} 12. bxc3 {[%clk 01:29:25]} {[%emt 00:00:15]} cxd5 {[%clk 01:27:28]}
{[%emt 00:00:09]} 13. Bxf5 {[%clk 01:29:31]} {[%emt 00:00:24]} g6 {[%clk
01:25:15]} {[%emt 00:02:44]} 14. Bxg6 {[%clk 01:28:54]} {[%emt 00:01:06]} 1-0

[Event "Polofinale MCR junioru 2023"]
[Site "Czech Republic"]
[Date "2023.11.11"]
[Round "1.14"]
[White "Mrazek, Roman"]
[Black "Stocek, Martin"]
[Result "1/2-1/2"]
[TimeControl "90 min per 40 moves + 15 min + 30 sec / move from move 1"]
[WhiteFideId "23707062"]
[BlackFideId "380121"]
[WhiteElo "1866"]
[BlackElo "2125"]

1. e4 {[%clk 01:30:55]} {[%emt 00:00:04]} c6 {[%clk 01:30:48]} {[%emt
00:00:13]} 2. d4 {[%clk 01:31:11]} {[%emt 00:00:14]} d5 {[%clk 01:31:12]}
{[%emt 00:00:06]} 3. exd5 {[%clk 01:31:17]} {[%emt 00:00:24]} cxd5 {[%clk
01:31:34]} {[%emt 00:00:08]} 4. c4 {[%clk 01:31:39]} {[%emt 00:00:08]} Nf6
{[%clk 01:31:52]} {[%emt 00:00:11]} 5. Nc3 {[%clk 01:31:58]} {[%emt 00:00:11]}
g6 {[%clk 01:31:17]} {[%emt 00:01:06]} 6. h3 {[%clk 01:29:15]} {[%emt
00:03:13]} Bg7 {[%clk 01:29:50]} {[%emt 00:01:57]} 7. Nf3 {[%clk 01:29:09]}
{[%emt 00:00:35]} O-O {[%clk 01:30:11]} {[%emt 00:00:09]} 8. Be3 {[%clk
01:28:08]} {[%emt 00:01:31]} Nc6 {[%clk 01:29:00]} {[%emt 00:01:41]} 9. Rc1
{[%clk 01:27:02]} {[%emt 00:01:36]} b6 {[%clk 01:17:39]} {[%emt 00:11:53]} 10.
Be2 {[%clk 01:23:01]} {[%emt 00:04:29]} Bb7 {[%clk 01:17:48]} {[%emt 00:00:22]}
11. O-O {[%clk 01:22:35]} {[%emt 00:00:56]} Rc8 {[%clk 01:13:33]} {[%emt
00:04:45]} 12. Qa4 {[%clk 01:15:16]} {[%emt 00:07:47]} dxc4 {[%clk 01:04:00]}
{[%emt 00:10:05]} 13. Bxc4 {[%clk 01:06:52]} {[%emt 00:08:53]} a6 {[%clk
00:57:24]} {[%emt 00:07:08]} 14. Be2 {[%clk 01:03:26]} {[%emt 00:03:55]} b5
{[%clk 00:57:43]} {[%emt 00:00:11]} 15. Qd1 {[%clk 01:03:42]} {[%emt 00:00:14]}
Nd5 {[%clk 00:54:57]} {[%emt 00:03:15]} 16. Qd2 {[%clk 00:59:18]} {[%emt
00:04:53]} Nxc3 {[%clk 00:38:30]} {[%emt 00:16:59]} 17. Rxc3 {[%clk 00:53:00]}
{[%emt 00:06:48]} e6 {[%clk 00:34:22]} {[%emt 00:04:38]} 18. Rd1 {[%clk
00:52:10]} {[%emt 00:01:17]} Qd7 {[%clk 00:32:33]} {[%emt 00:02:22]} 19. Bh6
{[%clk 00:48:15]} {[%emt 00:04:24]} Rfd8 {[%clk 00:32:13]} {[%emt 00:00:50]} 20.
Bxg7 {[%clk 00:47:57]} {[%emt 00:00:49]} Kxg7 {[%clk 00:32:40]} {[%emt
00:00:02]} 21. Rd3 {[%clk 00:47:32]} {[%emt 00:00:56]} Qd5 {[%clk 00:30:55]}
{[%emt 00:02:13]} 22. a3 {[%clk 00:47:17]} {[%emt 00:00:47]} Ne7 {[%clk
00:30:28]} {[%emt 00:00:56]} 23. Ne1 {[%clk 00:40:50]} {[%emt 00:06:58]} Qd7
{[%clk 00:28:32]} {[%emt 00:02:26]} 24. Bf3 {[%clk 00:40:48]} {[%emt 00:00:31]}
Nd5 {[%clk 00:27:51]} {[%emt 00:01:11]} 25. Nc2 {[%clk 00:40:50]} {[%emt
00:00:27]} Nb6 {[%clk 00:26:32]} {[%emt 00:01:50]} 26. Bxb7 {[%clk 00:40:51]}
{[%emt 00:00:28]} Qxb7 {[%clk 00:27:00]} {[%emt 00:00:03]} 27. Ne3 {[%clk
00:40:51]} {[%emt 00:00:30]} Rd6 {[%clk 00:25:51]} {[%emt 00:01:40]} 28. Rc1
{[%clk 00:34:13]} {[%emt 00:07:06]} Rxc1+ {[%clk 00:24:56]} {[%emt 00:01:26]}
29. Qxc1 {[%clk 00:34:41]} {[%emt 00:00:02]} Qd7 {[%clk 00:24:46]} {[%emt
00:00:39]} 30. Ng4 {[%clk 00:33:58]} {[%emt 00:01:14]} Qd8 {[%clk 00:21:23]}
{[%emt 00:03:53]} 31. Qh6+ {[%clk 00:32:11]} {[%emt 00:02:17]} Kg8 {[%clk
00:21:48]} {[%emt 00:00:05]} 32. Rf3 {[%clk 00:31:02]} {[%emt 00:01:39]} Nd5
{[%clk 00:13:28]} {[%emt 00:08:51]} 33. h4 {[%clk 00:26:48]} {[%emt 00:04:44]}
1/2-1/2

[Event "Polofinale MCR junioru 2023"]
[Site "Czech Republic"]
[Date "2023.11.11"]
[Round "1.15"]
[White "Prazak, Daniel"]
[Black "Pelc, Adam"]
[Result "1-0"]
[TimeControl "90 min per 40 moves + 15 min + 30 sec / move from move 1"]
[WhiteFideId "23709456"]
[BlackFideId "23723033"]
[WhiteElo "2103"]
[BlackElo "1856"]

1. e4 {[%clk 01:30:47]} {[%emt 00:00:06]} c5 {[%clk 01:30:38]} {[%emt
00:00:28]} 2. Nf3 {[%clk 01:30:54]} {[%emt 00:00:24]} g6 {[%clk 01:30:50]}
{[%emt 00:00:17]} 3. c4 {[%clk 01:29:48]} {[%emt 00:01:37]} Bg7 {[%clk
01:30:50]} {[%emt 00:00:29]} 4. d4 {[%clk 01:30:10]} {[%emt 00:00:09]} cxd4
{[%clk 01:31:09]} {[%emt 00:00:11]} 5. Nxd4 {[%clk 01:30:29]} {[%emt 00:00:10]}
Nc6 {[%clk 01:30:52]} {[%emt 00:00:48]} 6. Be3 {[%clk 01:30:49]} {[%emt
00:00:10]} Nf6 {[%clk 01:29:55]} {[%emt 00:01:27]} 7. Nc3 {[%clk 01:31:10]}
{[%emt 00:00:08]} O-O {[%clk 01:28:21]} {[%emt 00:02:04]} 8. Be2 {[%clk
01:31:20]} {[%emt 00:00:21]} d6 {[%clk 01:28:02]} {[%emt 00:00:48]} 9. O-O
{[%clk 01:31:40]} {[%emt 00:00:11]} Bd7 {[%clk 01:28:00]} {[%emt 00:00:31]} 10.
h3 {[%clk 01:30:33]} {[%emt 00:01:37]} Nxd4 {[%clk 01:27:21]} {[%emt 00:01:10]}
11. Bxd4 {[%clk 01:30:51]} {[%emt 00:00:12]} Bc6 {[%clk 01:27:27]} {[%emt
00:00:24]} 12. Qc2 {[%clk 01:31:06]} {[%emt 00:00:14]} Nd7 {[%clk 01:25:09]}
{[%emt 00:02:49]} 13. Bxg7 {[%clk 01:29:19]} {[%emt 00:02:17]} Kxg7 {[%clk
01:25:28]} {[%emt 00:00:11]} 14. b4 {[%clk 01:28:41]} {[%emt 00:01:08]} b6
{[%clk 01:21:51]} {[%emt 00:04:06]} 15. Rac1 {[%clk 01:25:34]} {[%emt
00:03:37]} Rc8 {[%clk 01:10:25]} {[%emt 00:11:57]} 16. f4 {[%clk 01:16:08]}
{[%emt 00:09:56]} a5 {[%clk 01:06:41]} {[%emt 00:04:14]} 17. a3 {[%clk
01:16:01]} {[%emt 00:00:37]} Nf6 {[%clk 01:05:41]} {[%emt 00:01:30]} 18. Qd3
{[%clk 01:13:33]} {[%emt 00:02:57]} Qc7 {[%clk 00:56:14]} {[%emt 00:09:57]} 19.
Qe3 {[%clk 01:10:51]} {[%emt 00:03:13]} axb4 {[%clk 00:54:15]} {[%emt
00:02:29]} 20. axb4 {[%clk 01:11:12]} {[%emt 00:00:09]} Kg8 {[%clk 00:54:27]}
{[%emt 00:00:17]} 21. f5 {[%clk 00:55:28]} {[%emt 00:16:14]} Qb7 {[%clk
00:50:55]} {[%emt 00:04:02]} 22. fxg6 {[%clk 00:55:10]} {[%emt 00:00:50]} fxg6
{[%clk 00:50:13]} {[%emt 00:01:11]} 23. b5 {[%clk 00:52:43]} {[%emt 00:02:57]}
Be8 {[%clk 00:40:05]} {[%emt 00:10:37]} 24. e5 {[%clk 00:50:07]} {[%emt
00:03:07]} dxe5 {[%clk 00:38:21]} {[%emt 00:02:14]} 25. Bf3 {[%clk 00:43:32]}
{[%emt 00:07:05]} Qc7 {[%clk 00:34:25]} {[%emt 00:04:26]} 26. Nd5 {[%clk
00:43:10]} {[%emt 00:00:52]} Nxd5 {[%clk 00:32:14]} {[%emt 00:02:41]} 27. Bxd5+
{[%clk 00:43:14]} {[%emt 00:00:25]} Bf7 {[%clk 00:29:33]} {[%emt 00:03:12]} 28.
Rxf7 {[%clk 00:43:37]} {[%emt 00:00:08]} Rxf7 {[%clk 00:29:56]} {[%emt
00:00:06]} 29. Rf1 {[%clk 00:44:04]} {[%emt 00:00:03]} Rcf8 {[%clk 00:29:33]}
{[%emt 00:00:53]} 30. Rxf7 {[%clk 00:44:20]} {[%emt 00:00:14]} Rxf7 {[%clk
00:29:14]} {[%emt 00:00:49]} 31. Qf2 {[%clk 00:44:37]} {[%emt 00:00:13]} e6
{[%clk 00:27:22]} {[%emt 00:02:22]} 32. Bxe6 {[%clk 00:45:01]} {[%emt
00:00:06]} Kg7 {[%clk 00:25:52]} {[%emt 00:01:59]} 33. Qxf7+ {[%clk 00:45:22]}
{[%emt 00:00:10]} Qxf7 {[%clk 00:26:17]} {[%emt 00:00:05]} 34. Bxf7 {[%clk
00:45:44]} {[%emt 00:00:07]} Kxf7 {[%clk 00:26:43]} {[%emt 00:00:04]} 35. c5
{[%clk 00:46:03]} {[%emt 00:00:12]} 1-0

[Event "Polofinale MCR junioru 2023"]
[Site "Czech Republic"]
[Date "2023.11.11"]
[Round "1.16"]
[White "Roubal, Matyas"]
[Black "Lihotsky, Lukas"]
[Result "0-1"]
[TimeControl "90 min per 40 moves + 15 min + 30 sec / move from move 1"]
[WhiteFideId "23727152"]
[BlackFideId "23727004"]
[WhiteElo "1837"]
[BlackElo "2100"]

1. e4 {[%clk 01:30:46]} {[%emt 00:00:13]} c6 {[%clk 01:30:49]} {[%emt
00:00:11]} 2. Nc3 {[%clk 01:31:10]} {[%emt 00:00:07]} d5 {[%clk 01:31:15]}
{[%emt 00:00:04]} 3. Nf3 {[%clk 01:31:29]} {[%emt 00:00:11]} Bg4 {[%clk
01:31:39]} {[%emt 00:00:06]} 4. h3 {[%clk 01:31:45]} {[%emt 00:00:15]} Bxf3
{[%clk 01:32:00]} {[%emt 00:00:09]} 5. Qxf3 {[%clk 01:32:08]} {[%emt 00:00:06]}
e6 {[%clk 01:32:25]} {[%emt 00:00:06]} 6. g3 {[%clk 01:32:35]} {[%emt
00:00:04]} Nf6 {[%clk 01:31:20]} {[%emt 00:01:34]} 7. d3 {[%clk 01:31:33]}
{[%emt 00:01:32]} Bb4 {[%clk 01:22:12]} {[%emt 00:09:38]} 8. Bd2 {[%clk
01:30:15]} {[%emt 00:01:49]} d4 {[%clk 01:21:50]} {[%emt 00:00:52]} 9. Nb1
{[%clk 01:28:43]} {[%emt 00:02:02]} Bxd2+ {[%clk 01:22:11]} {[%emt 00:00:09]}
10. Nxd2 {[%clk 01:29:11]} {[%emt 00:00:02]} e5 {[%clk 01:18:35]} {[%emt
00:04:06]} 11. Bg2 {[%clk 01:27:37]} {[%emt 00:02:05]} Qe7 {[%clk 01:10:00]}
{[%emt 00:09:04]} 12. Qe2 {[%clk 01:24:33]} {[%emt 00:03:35]} Nbd7 {[%clk
01:07:36]} {[%emt 00:02:55]} 13. O-O {[%clk 01:22:56]} {[%emt 00:02:06]} O-O
{[%clk 01:07:32]} {[%emt 00:00:34]} 14. f4 {[%clk 01:22:31]} {[%emt 00:00:56]}
a6 {[%clk 00:54:09]} {[%emt 00:13:53]} 15. Nf3 {[%clk 01:20:29]} {[%emt
00:02:32]} c5 {[%clk 00:53:34]} {[%emt 00:01:05]} 16. fxe5 {[%clk 01:17:30]}
{[%emt 00:03:30]} Nxe5 {[%clk 00:53:04]} {[%emt 00:01:00]} 17. Nxe5 {[%clk
01:17:55]} {[%emt 00:00:05]} Qxe5 {[%clk 00:53:29]} {[%emt 00:00:05]} 18. Rf5
{[%clk 01:17:52]} {[%emt 00:00:33]} Qxg3 {[%clk 00:49:05]} {[%emt 00:04:53]} 19.
Rxc5 {[%clk 01:16:56]} {[%emt 00:01:26]} Rac8 {[%clk 00:33:57]} {[%emt
00:15:37]} 20. Rxc8 {[%clk 01:12:59]} {[%emt 00:04:27]} Rxc8 {[%clk 00:34:21]}
{[%emt 00:00:06]} 21. Rf1 {[%clk 01:13:09]} {[%emt 00:00:19]} Nd7 {[%clk
00:27:19]} {[%emt 00:07:32]} 22. Qf2 {[%clk 01:09:12]} {[%emt 00:04:28]} Qxf2+
{[%clk 00:26:43]} {[%emt 00:01:06]} 23. Rxf2 {[%clk 01:09:35]} {[%emt
00:00:07]} Ne5 {[%clk 00:26:57]} {[%emt 00:00:17]} 24. Kf1 {[%clk 01:09:18]}
{[%emt 00:00:47]} b5 {[%clk 00:16:30]} {[%emt 00:10:57]} 25. Ke1 {[%clk
01:08:13]} {[%emt 00:01:34]} b4 {[%clk 00:15:42]} {[%emt 00:01:18]} 26. Kd2
{[%clk 01:07:42]} {[%emt 00:01:01]} a5 {[%clk 00:15:44]} {[%emt 00:00:28]} 27.
Rf1 {[%clk 01:07:26]} {[%emt 00:00:45]} Rc6 {[%clk 00:13:12]} {[%emt 00:03:02]}
28. Rf5 {[%clk 01:04:58]} {[%emt 00:02:59]} f6 {[%clk 00:13:05]} {[%emt
00:00:37]} 29. Rf1 {[%clk 01:05:19]} {[%emt 00:00:09]} g5 {[%clk 00:04:56]}
{[%emt 00:08:39]} 30. Rc1 {[%clk 01:05:04]} {[%emt 00:00:45]} Rd6 {[%clk
00:05:20]} {[%emt 00:00:06]} 31. Ra1 {[%clk 01:04:02]} {[%emt 00:01:32]} h5
{[%clk 00:03:21]} {[%emt 00:02:29]} 32. a3 {[%clk 01:04:18]} {[%emt 00:00:15]}
Kf7 {[%clk 00:01:19]} {[%emt 00:02:32]} 33. axb4 {[%clk 01:04:34]} {[%emt
00:00:14]} axb4 {[%clk 00:01:48]} {[%emt 00:00:01]} 34. Ra7+ {[%clk 01:04:45]}
{[%emt 00:00:19]} Kg6 {[%clk 00:01:10]} {[%emt 00:01:08]} 35. Rb7 {[%clk
01:04:59]} {[%emt 00:00:16]} Ra6 {[%clk 00:01:10]} {[%emt 00:00:30]} 36. Ke2
{[%clk 01:02:47]} {[%emt 00:02:42]} Ra1 {[%clk 00:01:02]} {[%emt 00:00:38]} 37.
Rxb4 {[%clk 01:02:05]} {[%emt 00:01:12]} Rc1 {[%clk 00:01:06]} {[%emt
00:00:25]} 38. Rxd4 {[%clk 01:02:00]} {[%emt 00:00:36]} Rxc2+ {[%clk 00:01:31]}
{[%emt 00:00:05]} 39. Kf1 {[%clk 01:02:27]} {[%emt 00:00:03]} Rxb2 {[%clk
00:01:03]} {[%emt 00:00:57]} 40. Rd8 {[%clk 00:58:44]} {[%emt 00:04:13]} g4
{[%clk 00:00:36]} {[%emt 00:00:57]} 41. hxg4 {[%clk 00:56:28]} {[%emt
00:02:45]} hxg4 {[%clk 00:00:32]} {[%emt 00:00:33]} 42. Kg1 {[%clk 00:53:47]}
{[%emt 00:03:11]} Kg5 {[%clk 00:12:48]} {[%emt 00:03:15]} 43. d4 {[%clk
01:08:29]} {[%emt 00:00:48]} Nc4 {[%clk 00:12:00]} {[%emt 00:01:17]} 44. e5
{[%clk 01:06:09]} {[%emt 00:02:50]} Ne3 {[%clk 00:11:16]} {[%emt 00:01:14]} 45.
Be4 {[%clk 01:02:52]} {[%emt 00:03:48]} fxe5 {[%clk 00:04:42]} {[%emt
00:07:05]} 46. dxe5 {[%clk 01:00:52]} {[%emt 00:02:29]} Kf4 {[%clk 00:04:29]}
{[%emt 00:00:42]} 47. e6 {[%clk 01:00:10]} {[%emt 00:01:13]} Kxe4 {[%clk
00:02:04]} {[%emt 00:02:55]} 48. e7 {[%clk 00:59:58]} {[%emt 00:00:42]} Kf3
{[%clk 00:02:22]} {[%emt 00:00:11]} 49. Rd1 {[%clk 00:57:31]} {[%emt 00:02:58]}
Rb8 {[%clk 00:02:12]} {[%emt 00:00:40]} 0-1